bitfinex/quotes_BTCUSD_20240728
["timestamp","ask_amount","ask_price","bid_price","bid_amount"]
[1722170258070,0.69930107,68123.0,68122.0,9.071846]
[1722170258275,0.98427908,68123.0,68122.0,9.071846]
[1722170258480,1.13429235,68123.0,68122.0,9.071846]
[1722170258691,1.13429235,68123.0,68122.0,9.007946]
[1722170258692,1.05245579,68123.0,68122.0,9.007946]
[1722170260446,0.927326,68123.0,68122.0,9.007946]
[1722170260649,0.977326,68123.0,68122.0,9.007946]
[1722170260781,0.927326,68123.0,68122.0,9.007946]
[1722170261392,0.82480453,68123.0,68122.0,9.007946]
[1722170261621,0.22301771,68123.0,68122.0,9.274746]
[1722170261786,0.48692247,68123.0,68122.0,9.096746]
[1722170262162,0.38955923,68123.0,68122.0,9.096746]
[1722170262441,0.38955923,68123.0,68122.0,9.274746]
[1722170262639,0.41260015,68123.0,68122.0,9.274746]
[1722170263907,0.38955923,68123.0,68122.0,9.274746]
[1722170264192,0.49943148,68123.0,68122.0,9.274746]
[1722170264578,0.46493878,68123.0,68122.0,9.274746]
[1722170264738,0.49905032,68123.0,68122.0,9.274746]
[1722170265683,0.38917068,68123.0,68122.0,9.274746]
[1722170265830,0.4990523,68123.0,68122.0,9.274746]
[1722170266027,0.62403968,68123.0,68122.0,9.070046]
[1722170266227,0.69207604,68123.0,68122.0,9.070046]
[1722170266451,0.69207853,68123.0,68122.0,9.096746]
[1722170266676,0.62403968,68123.0,68122.0,9.096746]
[1722170266880,0.64708086,68123.0,68122.0,9.096746]
[1722170267085,0.62403968,68123.0,68122.0,9.096746]
[1722170267252,0.69215936,68123.0,68122.0,9.096746]
[1722170267463,0.22242136,68123.0,68122.0,9.274746]
[1722170267858,0.12019753,68123.0,68122.0,9.274746]
[1722170268068,0.49909301,68123.0,68122.0,9.274746]
[1722170268269,0.38920488,68123.0,68122.0,9.274746]
[1722170268639,0.47711371,68123.0,68122.0,9.274746]
[1722170268780,0.49909301,68123.0,68122.0,9.274746]
[1722170269204,0.38920488,68123.0,68122.0,9.274746]
[1722170269412,0.49991343,68123.0,68122.0,9.274746]
[1722170269611,0.49909301,68123.0,68122.0,9.274746]
[1722170269816,0.38920488,68123.0,68122.0,9.274746]
[1722170270151,0.4122458,68123.0,68122.0,9.274746]
[1722170270308,0.52214235,68123.0,68122.0,9.274746]
[1722170271284,0.5220157,68123.0,68122.0,9.274746]
[1722170271669,0.4121241,68123.0,68122.0,9.274746]
[1722170271844,0.48108604,68123.0,68122.0,9.096746]
[1722170272044,0.71485726,68123.0,68122.0,9.070046]
[1722170272246,0.71485726,68123.0,68122.0,8.931146]
[1722170272714,1.0153586,68123.0,68122.0,8.931146]
[1722170273623,1.01511001,68123.0,68122.0,8.931146]
[1722170274412,1.01541987,68123.0,68122.0,8.931146]
[1722170274588,0.948864,68123.0,68122.0,8.931146]
[1722170274791,0.99978753,68123.0,68122.0,8.931146]
[1722170277490,0.89784545,68123.0,68122.0,8.931146]
[1722170277715,0.99980031,68123.0,68122.0,8.931146]
[1722170278194,0.97675939,68123.0,68122.0,8.931146]
[1722170279299,0.92675939,68123.0,68122.0,8.931146]
[1722170280303,0.97675939,68123.0,68122.0,8.931146]
[1722170280509,0.92675939,68123.0,68122.0,8.931146]
[1722170280733,0.92692433,68123.0,68122.0,8.931146]
[1722170281265,0.82480453,68123.0,68122.0,8.931146]
[1722170281468,0.9269243,68123.0,68122.0,8.931146]
[1722170281612,0.94996593,68123.0,68122.0,8.931146]
[1722170282304,1.098485,68123.0,68122.0,8.931146]
[1722170282722,1.07544337,68123.0,68122.0,8.931146]
[1722170282944,1.12544337,68123.0,68122.0,8.931146]
[1722170283172,1.09129357,68123.0,68122.0,8.931146]
[1722170283376,0.9767689,68123.0,68122.0,8.931146]
[1722170283775,0.9267689,68123.0,68122.0,8.931146]
[1722170283917,0.9767689,68123.0,68122.0,8.931146]
[1722170284559,0.9267689,68123.0,68122.0,8.931146]
[1722170284762,0.4570309,68123.0,68122.0,9.073946]
[1722170285080,0.4570309,68123.0,68122.0,9.278646]
[1722170285081,0.4585851,68123.0,68122.0,9.278646]
[1722170285316,0.2221619,68123.0,68122.0,9.278646]
[1722170285485,0.4570309,68123.0,68122.0,9.278646]
[1722170285734,0.69233076,68123.0,68122.0,9.100646]
[1722170286055,0.45746176,68123.0,68122.0,9.100646]
[1722170286261,0.45746176,68123.0,68122.0,9.278646]
[1722170286262,0.37810729,68123.0,68122.0,9.278646]
[1722170286396,0.45852459,68123.0,68122.0,9.278646]
[1722170286809,0.45852459,68123.0,68122.0,9.100646]
[1722170287034,0.45852459,68123.0,68122.0,9.278646]
[1722170288787,0.10622159,68123.0,68122.0,9.513518]
[1722170288903,0.03759302,68123.0,68122.0,9.278646]
[1722170289347,0.00276353,68123.0,68122.0,9.278646]
[1722170289548,0.03764157,68123.0,68122.0,9.278646]
[1722170289747,0.14323765,68123.0,68122.0,9.100646]
[1722170289954,0.17811569,68123.0,68122.0,9.100646]
[1722170290158,0.41298469,68123.0,68122.0,9.100646]
[1722170290321,0.38994457,68123.0,68122.0,9.100646]
[1722170290736,0.15507557,68123.0,68122.0,9.100646]
[1722170291655,0.03764157,68123.0,68122.0,9.100646]
[1722170292057,0.15507557,68123.0,68122.0,9.100646]
[1722170292677,0.12019753,68123.0,68122.0,9.100646]
[1722170292878,0.62470564,68123.0,68122.0,9.079346]
[1722170293079,0.58993553,68123.0,68122.0,8.931146]
[1722170293285,0.92809428,68123.0,68122.0,8.931146]
[1722170293833,0.95113538,68123.0,68122.0,8.931146]
[1722170294034,0.71626638,68123.0,68122.0,8.931146]
[1722170294564,0.48139738,68123.0,68122.0,8.997446]
[1722170294769,0.48139738,68123.0,68122.0,9.073146]
[1722170295167,0.69612654,68123.0,68122.0,9.073146]
[1722170295591,0.35506653,68123.0,68122.0,9.073146]
[1722170295837,0.46125641,68123.0,68122.0,9.073146]
[1722170296216,0.46203729,68123.0,68122.0,9.073146]
[1722170296416,0.46125641,68123.0,68122.0,9.073146]
[1722170296595,0.46209176,68123.0,68122.0,9.073146]
[1722170296791,0.46125641,68123.0,68122.0,9.073146]
[1722170297320,0.46281061,68123.0,68122.0,9.073146]
[1722170297676,0.46125641,68123.0,68122.0,9.073146]
[1722170297881,0.22638741,68123.0,68122.0,9.099846]
[1722170298076,0.22638741,68123.0,68122.0,9.277846]
[1722170298376,0.24942791,68123.0,68122.0,9.277846]
[1722170298827,0.14323803,68123.0,68122.0,9.277846]
[1722170299039,0.24842556,68123.0,68122.0,9.277846]
[1722170299301,0.10795106,68123.0,68122.0,9.277846]
[1722170299496,0.1090921,68123.0,68122.0,9.277846]
[1722170299699,0.2265261,68123.0,68122.0,9.277846]
[1722170299829,0.22538506,68123.0,68122.0,9.277846]
[1722170300235,0.15591278,68123.0,68122.0,9.277846]
[1722170301940,0.03847878,68123.0,68122.0,9.277846]
[1722170302141,0.00431773,68123.0,68122.0,9.277846]
[1722170302342,0.12019753,68123.0,68122.0,9.277846]
[1722170302727,0.03849888,68123.0,68122.0,9.277846]
[1722170302925,0.04005308,68123.0,68122.0,9.099846]
[1722170303131,0.04005308,68123.0,68122.0,9.277846]
[1722170303335,0.03849888,68123.0,68122.0,9.277846]
[1722170303535,0.03849888,68123.0,68122.0,9.099846]
[1722170303742,0.03849888,68123.0,68122.0,9.277846]
[1722170304165,0.03757535,68123.0,68122.0,9.277846]
[1722170304507,0.03757535,68123.0,68122.0,9.395282]
[1722170304508,0.16980182,68123.0,68122.0,9.395282]
[1722170304747,0.16981667,68123.0,68122.0,9.395282]
[1722170304926,0.03759689,68123.0,68122.0,9.395282]
[1722170305343,0.03837704,68123.0,68122.0,9.277846]
[1722170306645,0.03745351,68123.0,68122.0,9.391282]
[1722170306863,0.16966645,68123.0,68122.0,10.089898]
[1722170307052,0.06049362,68123.0,68122.0,10.094898]
[1722170307219,0.06893883,68123.0,68122.0,10.101898]
[1722170307382,0.00184,68123.0,68122.0,10.094898]
[1722170307586,0.04589306,68123.0,68122.0,10.094898]
[1722170307805,0.04781659,68123.0,68122.0,10.106898]
[1722170308288,0.04681659,68123.0,68122.0,10.101898]
[1722170308492,0.04681636,68123.0,68122.0,10.101898]
[1722170308699,0.00276353,68123.0,68122.0,10.101898]
[1722170309898,0.00376353,68123.0,68122.0,10.110898]
[1722170310483,0.00284,68123.0,68122.0,10.110898]
[1722170310659,0.02587873,68123.0,68122.0,10.110898]
[1722170311306,0.00284,68123.0,68122.0,10.110898]
[1722170312525,0.00284,68123.0,68122.0,9.698026]
[1722170312704,0.04685549,68123.0,68122.0,9.698026]
[1722170312911,0.04685549,68123.0,68122.0,9.876026]
[1722170312912,0.04777902,68123.0,68122.0,9.876026]
[1722170313137,0.10547402,68123.0,68122.0,9.876026]
[1722170313314,0.10547402,68123.0,68122.0,9.406282]
[1722170313657,0.1274792,68123.0,68122.0,9.641154]
[1722170313988,0.03944734,68123.0,68122.0,9.406282]
[1722170314218,0.1494918,68123.0,68122.0,9.406282]
[1722170314419,0.14979099,68123.0,68122.0,9.406282]
[1722170314622,0.17283094,68123.0,68122.0,9.222546]
[1722170314861,0.13684358,68123.0,68122.0,9.222546]
[1722170315018,0.17283246,68123.0,68122.0,9.222546]
[1722170315220,0.17283246,68123.0,68122.0,9.339982]
[1722170315827,0.17190893,68123.0,68122.0,9.339982]
[1722170316036,0.14979251,68123.0,68122.0,9.339982]
[1722170316453,0.14979251,68123.0,68122.0,9.222546]
[1722170316866,0.15718641,68123.0,68122.0,9.044546]
[1722170317071,0.39205541,68123.0,68122.0,8.942146]
[1722170317411,0.62692441,68123.0,68122.0,8.942146]
[1722170317839,0.75897253,68123.0,68122.0,8.942146]
[1722170318043,0.75974894,68123.0,68122.0,8.942146]
[1722170318240,0.62769083,68123.0,68122.0,8.942146]
[1722170319008,0.62769083,68123.0,68122.0,9.289546]
[1722170319009,0.17257694,68123.0,68122.0,9.289546]
[1722170319146,0.17257694,68123.0,68122.0,9.406982]
[1722170319147,0.04051883,68123.0,68122.0,9.406982]
[1722170319350,0.04051883,68123.0,68122.0,9.641854]
[1722170319545,0.0395953,68123.0,68122.0,9.876726]
[1722170319751,0.1285502,68123.0,68122.0,9.876726]
[1722170320763,0.04051883,68123.0,68122.0,9.876726]
[1722170321323,0.00376353,68123.0,68122.0,9.876726]
[1722170321533,0.04064931,68123.0,68122.0,9.876726]
[1722170321732,0.00376353,68123.0,68122.0,9.876726]
[1722170322072,0.04064821,68123.0,68122.0,9.876726]
[1722170322833,0.15171508,68123.0,68122.0,9.876726]
[1722170323036,0.06368802,68123.0,68122.0,9.876726]
[1722170323564,0.03972468,68123.0,68122.0,9.876726]
[1722170324639,0.03967201,68123.0,68122.0,9.876726]
[1722170324844,0.12770443,68123.0,68122.0,9.876726]
[1722170326254,0.12862796,68123.0,68122.0,9.876726]
[1722170326455,0.12770443,68123.0,68122.0,9.876726]
[1722170326695,0.12862796,68123.0,68122.0,9.876726]
[1722170326854,0.15063607,68123.0,68122.0,9.876726]
[1722170327055,0.12863734,68123.0,68122.0,9.876726]
[1722170327276,0.04059554,68123.0,68122.0,9.876726]
[1722170327678,0.00376353,68123.0,68122.0,9.876726]
[1722170328034,0.04067827,68123.0,68122.0,9.876726]
[1722170328385,0.15073109,68123.0,68122.0,9.876726]
[1722170328592,0.04402245,68125.0,68124.0,0.178]
[1722170328795,0.00092353,68132.0,68124.0,0.178]
[1722170328796,0.06603368,68140.0,68138.0,0.3418]
[1722170328999,0.06603368,68142.0,68141.0,0.2047]
[1722170329333,0.11005282,68145.0,68138.0,0.284817]
[1722170329334,0.04556535,68145.0,68144.0,0.322098]
[1722170329528,0.0015542,68145.0,68144.0,0.79169]
[1722170329802,0.0015542,68145.0,68144.0,1.026486]
[1722170329931,0.04401115,68146.0,68145.0,0.791682]
[1722170330272,0.04401115,68146.0,68145.0,0.790682]
[1722170330474,0.04401115,68146.0,68144.0,0.234796]
[1722170330475,0.00083,68147.0,68146.0,0.791675]
[1722170331126,0.00083,68147.0,68146.0,0.790675]
[1722170331528,0.02386139,68147.0,68146.0,0.790675]
[1722170331860,0.00083,68147.0,68146.0,0.804675]
[1722170333502,0.00183,68147.0,68146.0,0.816675]
[1722170334435,0.00183,68147.0,68146.0,0.893675]
[1722170335327,0.02486034,68147.0,68146.0,0.893675]
[1722170335731,0.00183,68147.0,68146.0,1.188565]
[1722170336531,0.00083,68147.0,68146.0,1.176565]
[1722170336735,0.00183,68147.0,68146.0,1.190565]
[1722170336911,0.00017782,68152.0,68151.0,1.447274]
[1722170337126,0.00017782,68152.0,68151.0,1.547274]
[1722170337357,0.00017782,68152.0,68151.0,1.797274]
[1722170337856,0.00017782,68152.0,68151.0,1.547274]
[1722170338063,0.00017782,68152.0,68151.0,1.797274]
[1722170338797,0.00017782,68152.0,68151.0,1.811274]
[1722170338964,0.00017782,68152.0,68151.0,1.561274]
[1722170339322,0.02320399,68152.0,68151.0,1.570274]
[1722170339529,0.02320399,68152.0,68151.0,1.556274]
[1722170339898,0.02320399,68152.0,68151.0,1.547274]
[1722170340121,0.02320399,68152.0,68151.0,1.561274]
[1722170340479,0.02320399,68152.0,68151.0,1.326502]
[1722170340694,0.02320399,68152.0,68151.0,1.262502]
[1722170340896,0.02320399,68152.0,68151.0,1.276502]
[1722170341122,0.02320399,68152.0,68151.0,1.290502]
[1722170341328,0.02320399,68152.0,68151.0,1.575274]
[1722170341534,0.00017782,68152.0,68151.0,1.575274]
[1722170342046,0.00017782,68152.0,68151.0,1.525274]
[1722170342249,0.00017782,68152.0,68151.0,1.575274]
[1722170342824,0.00017782,68152.0,68151.0,1.561274]
[1722170343233,0.00017782,68152.0,68151.0,1.575274]
[1722170343873,0.02320324,68152.0,68151.0,1.575274]
[1722170344101,0.00017782,68152.0,68151.0,1.575274]
[1722170344478,0.00017782,68152.0,68151.0,1.825274]
[1722170344681,0.00827,68157.0,68151.0,1.825274]
[1722170344925,0.00827,68157.0,68156.0,1.701697]
[1722170345122,0.00827,68157.0,68156.0,1.85971157]
[1722170345345,0.00827,68157.0,68156.0,2.20971157]
[1722170345651,0.00827,68157.0,68156.0,2.25314216]
[1722170346433,0.00827,68157.0,68156.0,2.21071157]
[1722170346668,0.00827,68188.0,68173.0,0.2537]
[1722170346851,0.00827,68188.0,68187.0,0.79032]
[1722170347073,0.00827,68188.0,68187.0,0.89032]
[1722170347269,0.00827,68188.0,68187.0,1.266568]
[1722170347513,0.03128412,68188.0,68187.0,1.266568]
[1722170347713,0.03128412,68188.0,68187.0,1.203668]
[1722170347927,0.03128412,68188.0,68187.0,0.655672]
[1722170348171,0.00827,68188.0,68187.0,0.89032]
[1722170348338,0.00919353,68188.0,68187.0,0.2037]
[1722170348542,0.00919353,68188.0,68187.0,0.321024]
[1722170348757,0.00919353,68188.0,68187.0,0.555672]
[1722170349092,0.00827,68188.0,68187.0,0.569672]
[1722170349299,0.00827,68188.0,68187.0,0.555672]
[1722170349499,0.00919353,68188.0,68187.0,0.321024]
[1722170349853,0.00919353,68188.0,68187.0,0.555672]
[1722170350682,0.00919353,68188.0,68187.0,0.581672]
[1722170350909,0.00919353,68188.0,68187.0,0.567672]
[1722170351126,0.00827,68188.0,68187.0,1.024968]
[1722170351341,0.00827,68188.0,68187.0,1.43992757]
[1722170351342,0.03128654,68188.0,68187.0,1.43992757]
[1722170351484,0.03128654,68188.0,68187.0,1.524316]
[1722170351684,0.03128654,68188.0,68187.0,1.289668]
[1722170352125,0.03128654,68188.0,68187.0,1.275668]
[1722170352529,0.03128654,68188.0,68187.0,1.33755416]
[1722170352766,0.00827,68188.0,68187.0,1.33755416]
[1722170352964,0.00827,68188.0,68187.0,1.32555416]
[1722170353173,0.00827,68188.0,68187.0,1.43690308]
[1722170353378,0.00827,68188.0,68187.0,1.82181065]
[1722170353577,0.00827,68192.0,68191.0,1.463622]
[1722170353777,0.00827,68192.0,68191.0,2.06875165]
[1722170353979,0.00827,68192.0,68191.0,2.30338665]
[1722170354383,0.00827,68192.0,68191.0,2.06875165]
[1722170354800,0.00827,68192.0,68191.0,2.08275165]
[1722170355422,0.00827,68192.0,68191.0,1.84675165]
[1722170356063,0.03128128,68192.0,68191.0,1.83275165]
[1722170356244,0.03128128,68192.0,68191.0,2.08275165]
[1722170356457,0.03128128,68192.0,68191.0,2.09675165]
[1722170356458,0.00827,68192.0,68191.0,2.09675165]
[1722170357457,0.00827,68192.0,68191.0,2.09102165]
[1722170357660,0.00827,68192.0,68191.0,2.07702165]
[1722170357858,0.00827,68192.0,68191.0,1.85502165]
[1722170358301,0.00827,68192.0,68191.0,1.84102165]
[1722170358507,0.00827,68192.0,68191.0,1.85502165]
[1722170358677,0.00827,68192.0,68191.0,2.10502165]
[1722170358834,0.00827,68192.0,68191.0,2.09102165]
[1722170359038,0.00827,68192.0,68191.0,1.85502165]
[1722170359558,0.00827,68192.0,68191.0,1.34097092]
[1722170359735,0.00827,68192.0,68191.0,1.32697092]
[1722170359736,0.03128173,68192.0,68191.0,1.32697092]
[1722170360083,0.03128173,68192.0,68191.0,1.38885708]
[1722170360296,0.00827,68192.0,68191.0,1.33950816]
[1722170360493,0.00827,68192.0,68191.0,1.32550816]
[1722170360640,0.00827,68192.0,68191.0,1.31150816]
[1722170360842,0.00827,68192.0,68191.0,1.32550816]
[1722170361042,0.00827,68192.0,68191.0,1.33950816]
[1722170361251,0.00827,68192.0,68191.0,1.31150816]
[1722170361671,0.00827,68192.0,68191.0,1.33950816]
[1722170361873,0.00827,68192.0,68191.0,1.76040273]
[1722170362122,0.00827,68192.0,68191.0,2.08270956]
[1722170362425,0.00827,68192.0,68191.0,2.09670956]
[1722170362622,0.00827,68192.0,68191.0,2.08270956]
[1722170362829,0.00827,68192.0,68191.0,1.83270956]
[1722170362982,0.00827,68192.0,68191.0,1.59544999]
[1722170363183,0.00827,68192.0,68191.0,1.60944999]
[1722170363584,0.03128298,68192.0,68191.0,1.60944999]
[1722170363811,0.03128298,68192.0,68191.0,1.59544999]
[1722170364007,0.03128298,68192.0,68191.0,1.60944999]
[1722170364218,0.03128298,68192.0,68191.0,1.62344999]
[1722170364375,0.03128298,68192.0,68191.0,1.60944999]
[1722170364576,0.03128298,68192.0,68191.0,1.59544999]
[1722170364888,0.00827,68192.0,68191.0,1.60944999]
[1722170365259,0.00827,68192.0,68191.0,1.62344999]
[1722170365611,0.00827,68192.0,68191.0,1.23611499]
[1722170365817,0.00827,68192.0,68191.0,1.18822883]
[1722170366023,0.00827,68192.0,68191.0,1.20222883]
[1722170366212,0.00827,68192.0,68191.0,0.95359383]
[1722170366691,0.00919353,68192.0,68191.0,0.918287]
[1722170367081,0.00827,68192.0,68191.0,1.138922]
[1722170367556,0.00827,68192.0,68191.0,1.453957]
[1722170367788,0.00827,68192.0,68191.0,1.516657]
[1722170368014,0.00827,68192.0,68191.0,1.54686073]
[1722170368190,0.03128314,68192.0,68191.0,1.32622573]
[1722170368429,0.03128314,68192.0,68191.0,1.23243256]
[1722170368831,0.00827,68192.0,68191.0,0.98379756]
[1722170369031,0.00827,68192.0,68191.0,0.99779756]
[1722170369302,0.00827,68192.0,68191.0,1.24643256]
[1722170369722,0.00827,68192.0,68191.0,1.152922]
[1722170369893,0.00827,68192.0,68191.0,1.138922]
[1722170370294,0.00827,68192.0,68191.0,1.152922]
[1722170370511,0.00827,68192.0,68191.0,1.138922]
[1722170370923,0.00827,68192.0,68191.0,1.152922]
[1722170371158,0.00827,68192.0,68191.0,1.16169887]
[1722170371390,0.00827,68192.0,68191.0,1.2059026]
[1722170371565,0.00827,68192.0,68191.0,1.16169887]
[1722170371894,0.03110659,68192.0,68191.0,1.14769887]
[1722170372043,0.03110659,68192.0,68191.0,1.16169887]
[1722170372247,0.03110659,68192.0,68191.0,1.13369887]
[1722170372451,0.03110659,68192.0,68191.0,1.36833387]
[1722170372650,0.03110659,68192.0,68191.0,1.29079887]
[1722170372651,0.0090935,68192.0,68191.0,1.29079887]
[1722170373092,0.0090935,68192.0,68191.0,1.27679887]
[1722170373321,0.0080935,68192.0,68191.0,1.27679887]
[1722170373546,0.0090935,68192.0,68191.0,1.52543387]
[1722170373747,0.0090935,68192.0,68191.0,1.30479887]
[1722170374001,0.0080935,68192.0,68191.0,1.27679887]
[1722170374203,0.0080935,68192.0,68191.0,1.71169344]
[1722170374407,0.0090935,68192.0,68191.0,1.80689717]
[1722170374562,0.0090935,68192.0,68191.0,1.79289717]
[1722170374929,0.0090935,68192.0,68191.0,1.80689717]
[1722170375712,0.0090935,68192.0,68191.0,1.79289717]
[1722170375713,0.0080935,68192.0,68191.0,1.79289717]
[1722170375853,0.0090935,68192.0,68191.0,1.80689717]
[1722170376704,0.0090935,68192.0,68191.0,2.17876795]
[1722170376949,0.0090935,68192.0,68191.0,2.22907478]
[1722170377171,0.0090935,68192.0,68191.0,2.05689717]
[1722170377381,0.0090935,68192.0,68191.0,2.1787568]
[1722170377578,0.0090935,68192.0,68191.0,2.1797568]
[1722170377978,0.0090935,68192.0,68191.0,1.95506363]
[1722170378621,0.0090935,68192.0,68191.0,1.9057568]
[1722170378951,0.0090935,68192.0,68191.0,1.86155307]
[1722170379378,0.0090935,68192.0,68191.0,1.6612935]
[1722170379536,0.0090935,68192.0,68191.0,1.24209887]
[1722170379903,0.0090935,68192.0,68191.0,1.16169887]
[1722170380334,0.03210536,68192.0,68191.0,1.16169887]
[1722170381087,0.0090935,68192.0,68191.0,1.16169887]
[1722170383212,0.0090935,68192.0,68191.0,0.98369887]
[1722170383421,0.0090935,68192.0,68191.0,1.16169887]
[1722170384359,0.03210563,68192.0,68191.0,1.16169887]
[1722170387064,0.0090935,68192.0,68191.0,1.16169887]
[1722170388799,0.0090935,68192.0,68191.0,0.98369887]
[1722170389258,0.0090935,68192.0,68191.0,1.16169887]
[1722170389485,0.0090935,68192.0,68191.0,0.98369887]
[1722170389690,0.0090935,68192.0,68191.0,1.16169887]
[1722170390315,0.03210577,68192.0,68191.0,1.16169887]
[1722170390522,0.03210577,68192.0,68191.0,0.92706387]
[1722170390729,0.0090935,68192.0,68191.0,0.92706387]
[1722170390925,0.0090935,68192.0,68191.0,1.16169887]
[1722170391292,0.0090935,68192.0,68191.0,0.98369887]
[1722170391530,0.0090935,68192.0,68191.0,0.74906387]
[1722170391957,0.0090935,68192.0,68191.0,1.16169887]
[1722170392510,0.0090935,68192.0,68191.0,0.98369887]
[1722170393033,0.0090935,68192.0,68191.0,1.16169887]
[1722170393263,0.0090935,68192.0,68191.0,0.98369887]
[1722170393997,0.03210568,68192.0,68191.0,0.98369887]
[1722170394609,0.03210568,68192.0,68191.0,1.23719887]
[1722170395857,0.03210568,68192.0,68191.0,1.53803387]
[1722170396173,0.0090935,68192.0,68191.0,1.30339887]
[1722170396389,0.0090935,68192.0,68191.0,1.53803387]
[1722170397322,0.0080935,68192.0,68191.0,1.56003387]
[1722170397617,0.0080935,68192.0,68191.0,2.01129344]
[1722170397972,0.0080935,68192.0,68191.0,2.09349635]
[1722170398184,0.0080935,68192.0,68191.0,2.07949635]
[1722170398384,0.0080935,68192.0,68191.0,2.22935962]
[1722170398986,0.0080935,68192.0,68191.0,2.21535962]
[1722170399210,0.0080935,68192.0,68191.0,2.22935962]
[1722170399425,0.0080935,68192.0,68191.0,2.46399032]
[1722170399931,0.0080935,68192.0,68191.0,2.21535837]
[1722170400044,0.0080935,68192.0,68191.0,2.21627137]
[1722170400245,0.0080935,68192.0,68191.0,2.23027137]
[1722170400693,0.03110384,68192.0,68191.0,1.98027137]
[1722170400888,0.03110384,68192.0,68191.0,1.96627137]
[1722170401162,0.03110384,68192.0,68191.0,1.98027137]
[1722170401373,0.03110384,68192.0,68191.0,1.93337529]
[1722170401592,0.03110384,68192.0,68191.0,1.70606948]
[1722170401817,0.03110384,68192.0,68191.0,1.71220644]
[1722170402197,0.03110384,68192.0,68191.0,1.73920644]
[1722170402309,0.03110384,68192.0,68191.0,1.68920644]
[1722170402711,0.03110384,68192.0,68191.0,1.16261187]
[1722170402974,0.03110384,68192.0,68191.0,0.98461187]
[1722170403130,0.03110384,68192.0,68191.0,1.16261187]
[1722170403335,0.03110384,68192.0,68191.0,0.98461187]
[1722170403535,0.03110384,68192.0,68191.0,1.16261187]
[1722170404676,0.03110384,68192.0,68191.0,0.98461187]
[1722170405019,0.03110384,68192.0,68191.0,1.16261187]
[1722170407225,0.0080935,68192.0,68191.0,1.16261187]
[1722170407847,0.0699935,68192.0,68191.0,1.16261187]
[1722170408289,0.0080935,68192.0,68191.0,1.16261187]
[1722170408838,0.05211857,68192.0,68191.0,1.16261187]
[1722170409042,0.0080935,68192.0,68191.0,0.98461187]
[1722170409151,0.05211916,68192.0,68191.0,1.16261187]
[1722170409559,0.0080935,68192.0,68191.0,1.16261187]
[1722170410553,0.0080935,68192.0,68191.0,1.53644687]
[1722170411232,0.0080935,68192.0,68191.0,1.30181187]
[1722170411458,0.0080935,68192.0,68191.0,1.16261187]
[1722170411662,0.13341748,68192.0,68191.0,1.16261187]
[1722170411818,0.09031703,68192.0,68191.0,1.16261187]
[1722170412176,0.1247597,68192.0,68191.0,1.16261187]
[1722170412336,0.1247597,68192.0,68191.0,0.9192]
[1722170412721,0.09031703,68192.0,68191.0,0.7412]
[1722170412931,0.17836925,68192.0,68191.0,0.9192]
[1722170413555,0.17836421,68192.0,68191.0,0.9192]
[1722170413777,0.17836421,68192.0,68191.0,0.7412]
[1722170414182,0.17836421,68192.0,68191.0,1.153835]
[1722170414363,0.17744082,68192.0,68191.0,1.153835]
[1722170414557,0.0080935,68192.0,68191.0,1.153835]
[1722170414789,0.03110552,68192.0,68191.0,1.153835]
[1722170415636,0.11915284,68192.0,68191.0,1.153835]
[1722170416747,0.12007637,68192.0,68191.0,1.153835]
[1722170417623,0.03202905,68192.0,68191.0,1.153835]
[1722170417847,0.12006676,68192.0,68191.0,0.975835]
[1722170418053,0.03202905,68192.0,68191.0,1.153835]
[1722170419067,0.03202905,68192.0,68191.0,0.975835]
[1722170419584,0.00901703,68192.0,68191.0,0.975835]
[1722170419785,0.00901703,68192.0,68191.0,1.153835]
[1722170420570,0.0080935,68192.0,68191.0,1.153835]
[1722170421231,0.05210229,68192.0,68191.0,1.153835]
[1722170422070,0.0080935,68192.0,68191.0,1.153835]
[1722170422549,0.03110548,68192.0,68191.0,1.153835]
[1722170422952,0.0080935,68192.0,68191.0,1.153835]
[1722170423155,0.0080935,68192.0,68191.0,1.65052957]
[1722170423658,0.0080935,68192.0,68191.0,1.72702957]
[1722170424244,0.0080935,68192.0,68191.0,1.44239457]
[1722170424506,0.0080935,68192.0,68191.0,1.230335]
[1722170424890,0.0080935,68192.0,68191.0,0.975835]
[1722170425097,0.0080935,68192.0,68191.0,1.153835]
[1722170426285,0.03110448,68192.0,68191.0,1.153835]
[1722170427368,0.0080935,68192.0,68191.0,1.153835]
[1722170428964,0.0080935,68192.0,68191.0,0.975835]
[1722170429369,0.0080935,68192.0,68191.0,1.153835]
[1722170429969,0.0080935,68192.0,68191.0,1.57717]
[1722170430166,0.0080935,68192.0,68191.0,1.52717]
[1722170430572,0.03860359,68198.0,68197.0,0.2037]
[1722170430835,0.03860359,68198.0,68197.0,0.2818]
[1722170431022,0.002,68199.0,68198.0,0.143005]
[1722170431222,0.002,68199.0,68198.0,0.790225]
[1722170431622,0.002,68199.0,68198.0,1.024835]
[1722170432030,0.002,68199.0,68198.0,1.259445]
[1722170432497,0.002,68199.0,68198.0,1.420045]
[1722170432723,0.002,68199.0,68198.0,1.4669432]
[1722170432930,0.002,68199.0,68198.0,1.61720277]
[1722170433133,0.002,68199.0,68198.0,1.66720277]
[1722170433569,0.002,68199.0,68198.0,1.69520277]
[1722170433789,0.00283,68199.0,68198.0,1.71820277]
[1722170434241,0.02583871,68199.0,68198.0,1.96820277]
[1722170434400,0.02583871,68199.0,68198.0,1.71820277]
[1722170434604,0.02583871,68199.0,68198.0,1.96820277]
[1722170434970,0.02583871,68199.0,68198.0,1.71820277]
[1722170437190,0.02583871,68199.0,68198.0,1.54020277]
[1722170437440,0.02583871,68199.0,68198.0,1.92130457]
[1722170437862,0.02583871,68199.0,68198.0,1.67130457]
[1722170439265,0.02583871,68199.0,68198.0,1.92130457]
[1722170439537,0.00283,68199.0,68198.0,1.92130457]
[1722170439760,0.00283,68199.0,68198.0,2.04666155]
[1722170439963,0.00283,68199.0,68198.0,1.99940457]
[1722170440598,0.00283,68199.0,68198.0,1.98540457]
[1722170440808,0.00283,68199.0,68198.0,1.7987114]
[1722170440920,0.00283,68199.0,68198.0,1.74940457]
[1722170441347,0.00283,68199.0,68198.0,1.73540457]
[1722170441830,0.00283,68199.0,68198.0,1.68540457]
[1722170442454,0.00283,68199.0,68198.0,1.50740457]
[1722170442854,0.00283,68199.0,68198.0,1.52140457]
[1722170442855,0.02583908,68199.0,68198.0,1.52140457]
[1722170443155,0.02583908,68199.0,68198.0,1.67640457]
[1722170443805,0.02583908,68199.0,68198.0,1.43780457]